bitfinex/quotes_ETHUSD_20241013
["timestamp","ask_amount","ask_price","bid_price","bid_amount"]
[1728832486950,5.75515926,2453.4,2453.3,1.26759377]
[1728832487262,4.24682513,2453.4,2453.3,0.96190211]
[1728832487457,5.75515926,2453.4,2453.3,0.96190211]
[1728832487652,5.75515926,2453.4,2453.3,1.26759377]
[1728832487865,5.75515926,2453.4,2453.3,0.96190211]
[1728832488360,5.75515926,2453.4,2453.3,1.26759377]
[1728832488659,5.75515926,2453.4,2453.3,0.96190211]
[1728832489022,4.24682513,2453.4,2453.3,1.26759377]
[1728832489226,4.24682513,2453.4,2453.3,0.96190211]
[1728832489730,4.24682513,2453.4,2453.3,1.26759377]
[1728832489923,4.24682513,2453.4,2453.3,0.96190211]
[1728832490754,4.24682513,2453.4,2453.3,1.26745746]
[1728832491062,4.24682513,2453.4,2453.3,0.96190211]
[1728832491429,4.24682513,2453.4,2453.3,1.26745746]
[1728832491765,4.24682513,2453.4,2453.3,1.1947951]
[1728832491930,4.24682513,2453.4,2453.3,1.50035045]
[1728832492133,4.24682513,2453.4,2453.3,1.1947951]
[1728832492670,0.17085513,2453.4,2453.3,2.21235045]
[1728832492837,0.17085513,2453.4,2453.3,8.5040966]
[1728832493052,4.07552,2453.7,2453.6,0.55]
[1728832493446,5.58385413,2453.7,2453.5,1.01755535]
[1728832493653,5.58385413,2453.7,2453.5,0.98432444]
[1728832493850,4.07564,2453.6,2453.5,1.83987979]
[1728832494265,4.07564,2453.6,2453.5,1.53432444]
[1728832494481,5.58385413,2453.7,2453.5,1.83982794]
[1728832494643,5.58385413,2453.7,2453.5,1.53432444]
[1728832494847,5.58385413,2453.7,2453.5,1.83982794]
[1728832495073,5.58385413,2453.7,2453.5,1.53432444]
[1728832495372,5.58385413,2453.7,2453.5,1.83982794]
[1728832495579,5.58385413,2453.7,2453.5,1.53432444]
[1728832495767,5.58385413,2453.7,2453.5,1.83982794]
[1728832495978,5.58385413,2453.7,2453.5,1.53432444]
[1728832496152,5.58385413,2453.7,2453.5,1.83982794]
[1728832496353,5.58385413,2453.7,2453.5,1.53432444]
[1728832496660,5.58385413,2453.7,2453.5,1.83982794]
[1728832496984,5.58385413,2453.7,2453.5,1.53432444]
[1728832497200,5.58385413,2453.7,2453.5,1.83982794]
[1728832497481,4.07552,2453.7,2453.5,1.53432444]
[1728832497776,5.58385413,2453.7,2453.5,1.53432444]
[1728832497985,0.17042537,2453.6,2453.5,1.53432444]
[1728832500345,0.17042537,2453.6,2453.5,7.11846857]
[1728832500546,0.17042537,2453.6,2453.5,11.88660915]
[1728832500794,8.15844348,2454.6,2454.0,4.07485]
[1728832501085,6.10452972,2454.7,2454.3,0.55]
[1728832501086,5.75329382,2454.5,2454.3,0.55]
[1728832501243,0.17079969,2454.5,2454.3,0.55]
[1728832501444,0.17079969,2454.5,2454.3,6.13279413]
[1728832501803,5.58184413,2454.9,2454.5,0.55]
[1728832501963,5.58224413,2454.7,2454.5,0.55]
[1728832502648,1.50833413,2454.7,2454.5,0.55]
[1728832504496,5.58231413,2454.6,2454.5,0.55]
[1728832504853,7.58231413,2454.6,2454.3,0.55]
[1728832505056,7.58231413,2454.6,2454.2,3.712]
[1728832505057,1.50833413,2454.4,2454.2,0.712]
[1728832505259,5.58264413,2454.4,2454.2,0.712]
[1728832506164,1.50833413,2454.3,2454.0,0.712]
[1728832506360,1.50533413,2454.2,2454.0,0.778714]
[1728832506869,5.58281413,2454.3,2454.0,0.778714]
[1728832507271,1.50833413,2454.2,2454.1,0.40636431]
[1728832507600,5.58281413,2454.3,2454.1,0.40636431]
[1728832508513,5.58281413,2454.3,2454.0,0.778714]
[1728832509004,1.50833413,2454.2,2454.0,0.778714]
[1728832509208,0.7633,2454.4,2453.8,0.712]
[1728832509209,5.58314413,2454.1,2453.8,0.712]
[1728832509367,5.58344413,2454.0,2453.8,1.12109981]
[1728832509566,5.58344413,2454.0,2453.8,0.40909981]
[1728832509787,4.07511,2454.0,2453.6,0.712]
[1728832509991,4.07511,2454.0,2453.6,2.26784153]
[1728832510300,4.07511,2454.0,2453.6,5.26784153]
[1728832510530,4.07511,2454.0,2453.7,0.55]
[1728832510711,4.07511,2454.0,2453.7,3.55]
[1728832510999,5.58314413,2454.1,2453.7,3.55]
[1728832511464,5.58314413,2454.1,2453.7,4.71741301]
[1728832511864,4.07498,2454.0,2453.7,4.71741301]
[1728832512160,5.58314413,2454.1,2453.7,5.12165425]
[1728832512161,9.65808413,2454.1,2453.7,5.12165425]
[1728832512773,5.58314413,2454.1,2453.7,9.19712425]
[1728832512990,0.1657985,2454.0,2453.9,0.55]
[1728832513167,4.0746,2454.3,2453.9,0.55]
[1728832513168,5.58293413,2454.3,2453.9,2.38752784]
[1728832513367,0.16563862,2454.0,2453.9,2.38752784]
[1728832513568,5.58293413,2454.3,2453.9,2.38752784]
[1728832513794,0.16547178,2454.0,2453.9,2.38752784]
[1728832513997,5.58291413,2454.3,2453.9,2.38752784]
[1728832514191,0.16547178,2454.0,2453.9,2.38752784]
[1728832514497,5.58291413,2454.3,2453.9,2.38752784]
[1728832514715,0.16547178,2454.0,2453.9,1.262]
[1728832514913,0.16547178,2454.0,2453.8,0.55]
[1728832515209,5.58305413,2454.2,2453.8,0.55]
[1728832515413,0.16547178,2453.9,2453.8,0.55]
[1728832515568,5.58305413,2454.2,2453.8,0.55]
[1728832515764,0.16547178,2453.9,2453.8,1.94845343]
[1728832516010,5.58305413,2454.2,2453.8,1.94845343]
[1728832516305,4.07472,2454.2,2453.8,1.94845343]
[1728832516813,0.16547178,2454.1,2453.8,1.94845343]
[1728832518631,0.16547178,2454.1,2454.0,0.55]
[1728832518809,0.16547178,2454.1,2454.0,1.15235934]
[1728832519130,0.1655552,2454.1,2454.0,1.15235934]
[1728832520133,5.74880933,2454.1,2453.8,0.55]
[1728832520338,4.07514,2453.9,2453.8,0.55]
[1728832520537,4.07531,2453.8,2453.3,6.70190076]
[1728832520842,1.50833413,2453.6,2453.3,0.712]
[1728832521502,1.50833413,2453.4,2453.1,4.07644]
[1728832521695,1.50833413,2453.4,2453.1,1.10030585]
[1728832521903,5.58415413,2453.5,2453.1,1.10030585]
[1728832522200,0.16534664,2453.4,2453.3,0.40161379]
[1728832522808,0.16534664,2453.4,2453.3,0.95161379]
[1728832523231,5.74965077,2453.4,2453.3,0.95161379]
[1728832523440,5.74965077,2453.4,2453.3,0.40161379]
[1728832524331,1.67368077,2453.4,2453.3,0.40161379]
[1728832525039,5.74965077,2453.4,2453.3,0.40161379]
[1728832525649,6.51785077,2453.4,2453.3,0.40161379]
[1728832525853,7.57721785,2453.4,2453.3,0.40161379]
[1728832526159,4.845,2452.9,2452.8,3.0]
[1728832526361,4.845,2452.9,2452.5,0.712]
[1728832526362,6.35333413,2452.9,2452.5,0.712]
[1728832526517,1.50833413,2452.8,2452.6,0.41071049]
[1728832526715,1.67301317,2452.8,2452.6,0.41071049]
[1728832527055,1.67301317,2452.8,2452.5,0.712]
[1728832527356,1.67301317,2452.8,2452.6,0.55]
[1728832527712,5.75003317,2452.8,2452.6,0.55]
[1728832529748,4.24169904,2452.8,2452.6,0.55]
[1728832529949,0.16467904,2452.8,2452.6,1.12545481]
[1728832530148,0.16467904,2452.8,2452.7,6.13546413]
[1728832530358,1.50833413,2453.2,2452.8,4.62695]
[1728832530517,4.84428,2453.4,2452.9,0.712]
[1728832530721,5.58414413,2453.5,2453.0,4.62661]
[1728832531069,5.58414413,2453.5,2453.0,0.55]
[1728832531070,1.50833413,2453.4,2453.0,0.55]
[1728832531920,4.84396,2453.6,2453.0,0.55]
[1728832532121,4.84396,2453.6,2453.2,0.55]
[1728832532367,8.9197,2453.6,2453.2,0.55]
[1728832532663,4.07583,2453.5,2453.2,0.55]
[1728832533175,8.91958,2453.6,2453.2,0.55]
[1728832533386,4.07582,2453.5,2453.2,0.55]
[1728832534275,4.07582,2453.5,2453.2,1.012638]
[1728832534779,4.076,2453.4,2453.2,1.012638]
[1728832535073,4.076,2453.4,2453.0,3.0]
[1728832535074,4.076,2453.4,2453.1,0.55]
[1728832536982,4.07581,2453.5,2453.1,0.55]
[1728832541178,4.07557,2453.7,2453.2,3.0]
[1728832541383,4.07564,2453.6,2453.3,0.712]
[1728832543046,0.16421988,2453.5,2453.3,0.712]
[1728832543598,4.24003988,2453.5,2453.3,0.712]
[1728832545784,0.8168,2453.4,2453.2,0.41503283]
[1728832546150,0.16421988,2453.3,2453.2,0.41503283]
[1728832546361,0.16421988,2453.3,2453.2,0.96503283]
[1728832547047,0.16421988,2453.3,2453.1,0.712]
[1728832547290,0.16421988,2453.3,2453.1,0.55]
[1728832547291,4.24035988,2453.3,2453.1,0.55]
[1728832547495,0.16421988,2453.3,2453.0,0.55]
[1728832547783,4.24045988,2453.3,2453.0,0.55]
[1728832548652,4.07655,2453.1,2452.7,0.712]
[1728832549487,0.16421988,2453.0,2452.7,0.712]
[1728832550187,5.05775988,2453.0,2452.8,0.41076416]
[1728832550392,4.077,2452.8,2452.6,0.55]
[1728832550560,4.077,2452.8,2452.3,0.712]
[1728832550763,4.077,2452.8,2452.3,4.0778]
[1728832550764,0.8168,2452.7,2452.3,4.0778]
[1728832550949,0.16421988,2452.6,2452.3,4.964562]
[1728832551677,0.16421988,2452.6,2452.3,3.0]
[1728832551864,0.16421988,2452.6,2452.2,8.15577]
[1728832552065,0.16421988,2452.6,2452.2,4.07788]
[1728832552267,0.16421988,2452.6,2452.4,0.55]
[1728832554107,4.07766,2452.4,2452.2,0.95838337]
[1728832554467,5.00437016,2452.3,2451.9,4.07837]
[1728832554656,5.00437016,2452.3,2452.0,0.40617721]
[1728832554855,4.07799,2452.2,2452.0,0.40617721]
[1728832555070,4.24157664,2452.2,2452.0,0.40617721]
[1728832555884,4.24157664,2452.2,2451.8,3.0]
[1728832556208,0.16358664,2452.2,2451.9,0.55]
[1728832556500,4.84075,2452.3,2451.9,0.55]
[1728832556809,0.16339171,2452.1,2451.8,3.0]
[1728832556982,8.15609,2452.2,2451.8,3.0]
[1728832557185,4.86277,2451.9,2451.4,0.712]
[1728832557509,4.07865,2451.8,2451.4,0.712]
[1728832557707,8.15738,2451.8,2451.4,0.712]
[1728832557915,8.15738,2451.8,2451.1,4.38423661]
[1728832557916,4.24221778,2451.7,2451.2,4.79162]
[1728832558069,4.24221778,2451.7,2451.2,5.678752]
[1728832558501,4.24221778,2451.7,2451.3,3.0]
[1728832558722,4.24221778,2451.7,2451.4,0.4044322]
[1728832558880,0.16337778,2451.7,2451.4,0.4044322]
[1728832559073,4.24219778,2451.7,2451.4,0.4044322]
[1728832559275,4.24219778,2451.7,2451.0,8.87169]
[1728832559276,6.24219778,2451.7,2451.0,8.87169]
[1728832559473,6.24219778,2451.7,2451.0,5.679009]
[1728832559474,0.7842,2451.6,2451.0,5.679009]
[1728832559818,4.07923,2451.5,2451.0,5.679009]
[1728832560116,4.07923,2451.5,2451.1,0.40733413]
[1728832560424,0.16326637,2451.4,2451.1,0.40733413]
[1728832560769,4.24258637,2451.4,2451.1,0.40733413]
[1728832561317,4.07963,2451.2,2450.6,4.7926]
[1728832561500,4.07963,2451.2,2450.7,4.08037]
[1728832561714,4.86369,2451.3,2450.6,4.7926]
[1728832561715,0.1623403,2451.1,2450.8,4.08021]
[1728832562222,0.1623403,2451.0,2450.8,4.08021]
[1728832562438,0.1623403,2451.0,2450.9,4.63013]
[1728832562580,0.1623403,2451.0,2450.9,9.213164]
[1728832562782,7.31,2451.6,2451.3,0.55]
[1728832562978,2.0,2451.7,2451.3,0.55]
[1728832562979,2.0,2451.7,2451.3,4.62931]
[1728832563188,0.16228457,2451.5,2451.4,4.6293]
[1728832563390,2.0,2451.7,2451.4,0.55]
[1728832563622,0.16189452,2451.6,2451.5,0.55]
[1728832564245,0.16189452,2451.6,2451.2,4.79159]
[1728832564403,0.16189452,2451.6,2451.2,5.270749]
[1728832565216,0.16189452,2451.6,2451.1,4.07965]
[1728832565417,0.7842,2451.5,2451.0,3.0]
[1728832565732,0.7842,2451.5,2451.0,7.07995]
[1728832566023,0.16202689,2451.4,2451.0,7.07995]
[1728832566201,0.16202689,2451.4,2451.1,0.55]
[1728832566735,0.16202689,2451.4,2451.1,4.62972]
[1728832566967,0.16202689,2451.4,2451.2,4.07962]
[1728832567225,0.16202689,2451.4,2451.3,4.07946]
[1728832567727,6.07881,2451.7,2451.2,4.79162]
[1728832567935,0.16202689,2451.4,2451.1,4.62969]
[1728832568246,0.16202689,2451.3,2451.1,4.62969]
[1728832568418,4.07898,2451.6,2451.1,4.62969]
[1728832568617,0.16202689,2451.5,2451.1,4.62969]
[1728832568913,0.16202689,2451.5,2451.2,4.07962]
[1728832569113,6.07881,2451.7,2451.2,4.07962]
[1728832569337,0.16202689,2451.4,2451.2,4.07962]
[1728832569515,6.07881,2451.7,2451.2,4.07962]
[1728832569721,0.16202689,2451.3,2451.2,4.07962]
[1728832569899,2.0,2451.7,2451.4,4.07929]
[1728832570100,2.0,2451.7,2451.4,4.79121]
[1728832570403,2.0,2451.7,2451.4,4.07921]
[1728832571441,2.0,2451.7,2451.5,4.07905]
[1728832572602,2.0,2451.7,2451.6,0.712]
[1728832572807,2.16201992,2451.7,2451.6,1.191113]
[1728832573549,2.16201992,2451.7,2451.6,5.820073]
[1728832576352,2.16201992,2451.7,2451.6,5.108073]
[1728832576916,2.16201992,2451.7,2451.6,8.108073]
[1728832577318,2.0,2451.7,2451.6,8.108073]
[1728832578313,2.16217315,2451.7,2451.6,8.108073]
[1728832581211,2.16217315,2451.7,2451.6,3.55]
[1728832581758,2.16217315,2451.7,2451.6,4.62896]
[1728832582003,2.16217315,2451.7,2451.6,0.55]
[1728832582162,2.92317315,2451.7,2451.6,0.55]
[1728832588638,2.16217315,2451.7,2451.6,0.55]
[1728832597495,2.16217315,2451.7,2451.6,8.84432064]
[1728832597703,7.31,2452.4,2452.2,0.55]
[1728832597873,0.7895,2452.6,2452.2,0.55]
[1728832598072,0.7895,2452.6,2452.4,0.55]
[1728832598262,0.7895,2452.8,2452.4,0.55]
[1728832598467,0.7895,2452.8,2452.4,4.62755]
[1728832598662,0.7895,2452.8,2452.4,0.55]
[1728832598997,4.86648,2452.8,2452.4,0.55]
[1728832599203,4.07715,2452.7,2452.2,7.62794]
[1728832599507,4.8665,2452.8,2452.4,0.55]
[1728832600599,4.07714,2452.7,2452.4,0.55]
[1728832601407,4.07714,2452.7,2452.3,0.55]
[1728832603569,4.07714,2452.7,2452.3,0.96699191]
[1728832603803,4.07714,2452.7,2452.3,5.04476191]
[1728832604010,0.7895,2452.8,2452.5,0.55]
[1728832604177,4.86655,2452.8,2452.5,0.55]
[1728832604546,4.07716,2452.7,2452.5,0.55]
[1728832604918,8.15439,2452.7,2452.5,0.55]
[1728832605216,4.0773,2452.6,2452.3,0.41699191]
[1728832605417,4.86709,2452.5,2452.3,0.41699191]
[1728832605781,0.15658098,2452.4,2452.3,0.41699191]
[1728832605981,4.23421098,2452.4,2452.3,0.41699191]
[1728832606182,4.23421098,2452.4,2451.9,3.712]
[1728832606382,4.23421098,2452.4,2451.9,0.40175196]
[1728832606383,0.7895,2452.1,2451.9,0.40175196]
[1728832606881,0.15658098,2452.0,2451.9,0.40175196]
[1728832607302,0.15658098,2452.0,2451.7,4.79071]
[1728832607585,4.23489098,2452.0,2451.6,3.50336064]
[1728832608529,4.07831,2452.0,2451.7,0.41621552]
[1728832608755,4.07831,2452.0,2451.8,0.55]
[1728832608890,0.15652528,2451.9,2451.8,0.55]
[1728832609636,0.15652528,2451.9,2451.7,0.41621552]
[1728832609637,4.23499528,2451.9,2451.7,0.41621552]
[1728832610033,4.23499528,2451.9,2451.4,4.93397286]
[1728832610034,4.23499528,2451.9,2451.5,0.55]
[1728832610689,4.23499528,2451.9,2451.5,1.25672315]
[1728832610895,4.23499528,2451.9,2451.5,1.34626038]
[1728832611718,4.23499528,2451.9,2451.5,1.74658736]
[1728832612082,4.23499528,2451.9,2451.5,0.95032698]
[1728832612399,4.07871,2451.8,2451.5,0.95032698]
[1728832612604,0.15643471,2451.7,2451.5,0.95032698]
[1728832612811,0.7757,2451.7,2451.5,0.95032698]
[1728832613134,0.15643471,2451.6,2451.5,0.95032698]
[1728832614232,0.15643471,2451.6,2451.5,1.65726145]
[1728832614396,0.7757,2451.7,2451.5,1.65726145]
[1728832614599,0.7757,2451.7,2451.5,0.95032698]
[1728832614826,0.15643471,2451.6,2451.5,0.95032698]
[1728832615035,0.7757,2451.7,2451.5,1.6573511]
[1728832615191,0.15643471,2451.6,2451.5,0.95032698]
[1728832615387,0.7757,2451.7,2451.5,1.65735136]
[1728832615604,0.7757,2451.7,2451.5,0.95032698]
[1728832616441,0.15643471,2451.6,2451.5,0.95032698]
[1728832616744,0.7757,2451.7,2451.5,2.72314945]
[1728832616946,0.7757,2451.7,2451.5,2.01600131]
[1728832617146,0.15643471,2451.6,2451.5,2.01600131]
[1728832617318,0.15643471,2451.6,2451.5,2.72314763]
[1728832617714,0.7757,2451.7,2451.5,2.72314763]
[1728832617921,0.7757,2451.7,2451.5,3.07627977]
[1728832618122,0.15653226,2451.6,2451.5,2.01600131]
[1728832618333,0.15653226,2451.6,2451.5,2.7231913]
[1728832618536,0.7757,2451.7,2451.5,2.7231913]
[1728832618844,0.7757,2451.7,2451.5,2.01600131]
[1728832619019,0.7757,2451.7,2451.5,3.07683664]
[1728832619227,0.15643473,2451.6,2451.5,2.01600131]
[1728832619422,0.7757,2451.7,2451.5,2.72323453]
[1728832619610,0.7757,2451.7,2451.5,3.07685114]
[1728832619827,0.15643473,2451.6,2451.5,2.01600131]
[1728832620022,0.7757,2451.7,2451.5,2.72323395]
[1728832620226,0.7757,2451.7,2451.5,2.01600131]
[1728832620442,0.15643473,2451.6,2451.5,2.01600131]
[1728832620665,0.7757,2451.7,2451.5,2.72323816]
[1728832620980,0.7757,2451.7,2451.5,2.01600131]
[1728832621109,0.15643473,2451.6,2451.5,2.01600131]
[1728832621311,0.15643473,2451.6,2451.5,3.02870199]
[1728832622452,0.7757,2451.7,2451.5,3.02870199]
[1728832622622,0.15643473,2451.6,2451.5,2.32146978]
[1728832622810,0.15643473,2451.6,2451.5,2.72321829]
[1728832623111,0.15643473,2451.6,2451.5,3.02868849]
[1728832623549,0.15643473,2451.6,2451.5,7.10781849]
[1728832623854,4.89334,2451.9,2451.5,8.1686]
[1728832624064,0.15643473,2451.8,2451.5,6.40060151]
[1728832624611,0.15643473,2451.8,2451.5,2.32147151]
[1728832624813,0.15643473,2451.8,2451.5,0.95032698]
[1728832625268,4.07888,2451.7,2451.5,0.95032698]
[1728832625414,11.38764,2452.4,2451.2,1.36629545]
[1728832625415,4.07913,2451.5,2451.2,1.36629545]
[1728832625607,0.15649743,2451.4,2451.0,1.16031804]
[1728832625832,4.07921,2451.5,2451.1,1.0127156]
[1728832626018,4.07921,2451.5,2451.1,0.3054702]
[1728832626019,0.15649046,2451.4,2451.1,0.3054702]
[1728832626435,0.15649046,2451.4,2450.8,0.85484784]
[1728832626436,0.8148,2451.1,2450.8,0.85484784]
[1728832626625,0.8148,2451.1,2451.0,0.30548653]
[1728832626832,0.8148,2451.1,2450.7,0.30548653]
[1728832627007,0.1561978,2451.0,2450.7,0.30548653]
[1728832627592,4.08031,2450.8,2450.4,1.16033437]
[1728832627741,0.8148,2450.7,2450.5,0.70700562]
[1728832627942,0.97085146,2450.7,2450.6,0.39914823]
[1728832628243,0.97085146,2450.7,2450.3,6.30215962]
[1728832628589,0.97085146,2450.7,2450.5,0.40450236]
[1728832629381,0.8148,2450.7,2450.6,0.55]
[1728832630580,0.8148,2450.7,2450.3,0.55]
[1728832630767,4.89529,2450.7,2450.3,0.55]
[1728832630999,4.08065,2450.6,2450.2,0.90722779]
[1728832631210,4.08082,2450.5,2450.2,0.90722779]
[1728832631427,4.08082,2450.5,2450.2,0.5]
[1728832631428,4.08113,2450.3,2450.2,0.5]
[1728832631706,0.7541,2450.4,2450.2,0.5]
[1728832632912,0.15523594,2450.3,2450.2,4.58129]
[1728832633116,0.15523594,2450.3,2450.2,12.55735748]
[1728832633474,0.7541,2451.0,2450.5,4.0807]
[1728832633706,0.15494307,2450.9,2450.6,0.55]
[1728832634506,0.7541,2450.8,2450.4,0.55]
[1728832634914,0.7541,2450.8,2450.2,0.5]
[1728832634915,4.2354194,2450.7,2450.2,0.5]
[1728832635100,0.7541,2450.6,2450.2,0.5]
[1728832635304,4.08087,2450.5,2450.2,0.5]
[1728832635475,4.23578519,2450.5,2450.2,0.5]
[1728832636102,0.15491519,2450.5,2450.2,0.5]
[1728832636616,0.15491519,2450.5,2450.4,4.08096]
[1728832636822,0.15491519,2450.5,2450.4,5.144056]
[1728832637324,0.8061,2450.8,2450.5,0.55]
[1728832637522,0.8061,2450.8,2450.5,4.6307]
[1728832637882,0.8061,2450.8,2450.6,4.0806]
[1728832638490,0.8061,2450.8,2450.5,0.55]
[1728832640526,0.8061,2450.8,2450.3,7.63112]
[1728832642813,0.8061,2450.8,2450.4,4.08094]
[1728832643021,0.8061,2450.8,2450.5,0.55]
[1728832643426,0.8061,2450.8,2450.3,4.63112]
[1728832643593,0.8061,2450.8,2450.4,0.55]
[1728832644498,0.8061,2450.8,2450.4,4.63087]
[1728832644696,0.8061,2450.8,2450.4,4.63093]
[1728832645091,0.8061,2450.8,2450.5,4.08077]
[1728832645295,0.7866,2451.0,2450.6,8.16109]
[1728832645584,0.7866,2451.0,2450.6,4.08054]
[1728832646923,0.7866,2451.0,2450.4,5.143963]
[1728832646924,0.7866,2451.0,2450.4,9.224763]
[1728832647081,0.7866,2451.0,2450.4,5.143893]
[1728832647082,4.08011,2451.0,2450.4,5.143893]
[1728832647407,4.86692,2450.8,2450.2,8.66238]
[1728832647584,0.7866,2450.6,2450.2,0.5]
[1728832647787,4.8673,2450.6,2450.2,0.5]
[1728832647982,0.15442501,2450.5,2450.2,4.58128]
[1728832649223,0.15442501,2450.5,2450.2,0.5]
[1728832650620,4.23522501,2450.5,2450.2,0.5]
[1728832650826,0.15442501,2450.5,2450.2,0.5]
[1728832651383,0.15442501,2450.5,2450.2,4.58129]
[1728832651836,0.8089,2450.4,2450.2,0.5]
[1728832652014,0.8089,2450.3,2450.2,0.5]
[1728832652218,5.04437131,2450.3,2450.2,0.5]
[1728832653623,0.96324131,2450.3,2450.2,0.5]
[1728832653990,0.15434131,2450.3,2450.2,0.5]
[1728832654428,0.8089,2450.5,2450.2,0.5]
[1728832654623,0.15418085,2450.3,2450.2,0.5]
[1728832654936,0.15418085,2450.3,2450.2,0.9703727]
[1728832655125,0.8089,2450.5,2450.2,0.9703727]
[1728832655126,4.88973,2450.5,2450.2,0.5]
[1728832655285,0.15418085,2450.3,2450.2,0.5]
[1728832655485,4.88973,2450.5,2450.2,0.5]
[1728832655686,0.15418085,2450.4,2450.2,0.5]
[1728832658238,4.08113,2450.3,2450.2,0.5]
[1728832658445,1.67061908,2450.3,2450.2,0.5]
[1728832658595,8.34637921,2450.3,2450.2,0.5]
[1728832658800,8.50056006,2450.3,2450.2,0.5]
[1728832660799,4.99341085,2450.3,2450.2,0.5]
[1728832661204,8.50056006,2450.3,2450.2,0.5]
[1728832661507,4.99341085,2450.3,2450.2,0.5]
[1728832662102,0.91228085,2450.3,2450.2,0.5]
[1728832662598,4.99341085,2450.3,2450.2,0.5]
[1728832663111,9.40799815,2450.3,2450.2,0.5]
[1728832665122,5.90084894,2450.3,2450.2,0.5]
[1728832665324,0.91228085,2450.3,2450.2,0.5]
[1728832666106,4.99341085,2450.3,2450.2,0.5]
[1728832670486,7.99341085,2450.3,2450.2,0.5]
[1728832673388,11.50056006,2450.3,2450.2,0.5]
[1728832673682,13.32786076,2450.3,2450.2,0.5]
[1728832673995,15.19561049,2450.3,2450.2,0.5]
[1728832674289,13.36830764,2450.3,2450.2,0.5]
[1728832674650,15.19549846,2450.3,2450.2,0.5]
[1728832674984,13.36830764,2450.3,2450.2,0.5]
[1728832675990,14.34958861,2450.3,2450.2,0.5]
[1728832676189,13.36830764,2450.3,2450.2,0.5]
[1728832678413,4.99341085,2450.3,2450.2,0.5]
[1728832679594,0.15418085,2450.3,2450.2,1.212]
[1728832680406,4.08072,2450.6,2450.2,1.212]
[1728832680589,0.15275009,2450.3,2450.2,1.212]
[1728832680798,8.16145,2450.6,2450.2,1.212]
[1728832681005,0.15275009,2450.3,2450.2,1.7535787]
[1728832681324,0.15307819,2450.3,2450.2,1.7535787]
[1728832681479,4.0808,2450.5,2450.2,1.7535787]
[1728832681681,0.15307819,2450.4,2450.2,1.7535787]
[1728832682021,4.23404819,2450.4,2450.2,1.7535787]
[1728832682241,4.23404819,2450.4,2450.2,1.212]
[1728832682376,8.31509819,2450.4,2450.2,1.212]
[1728832682584,4.08113,2450.3,2450.2,1.212]
[1728832682892,4.08113,2450.3,2450.2,0.5]
[1728832683074,4.23420819,2450.3,2450.2,0.5]
[1728832684020,5.14856601,2450.3,2450.2,0.5]
[1728832685483,5.97696601,2450.3,2450.2,0.5]
[1728832685684,8.97696601,2450.3,2450.2,0.5]
[1728832686116,10.80453745,2450.3,2450.2,0.5]
[1728832686416,10.80453703,2450.3,2450.2,0.5]
[1728832686997,11.22653006,2450.3,2450.2,0.5]
[1728832687187,11.26776498,2450.3,2450.2,0.5]
[1728832687401,11.22642488,2450.3,2450.2,0.5]
[1728832688401,9.95877368,2450.3,2450.2,0.5]
[1728832688798,20.27,2449.7,2449.4,0.5]
[1728832689000,11.41800921,2449.5,2449.4,0.5]
[1728832689500,11.57052186,2449.5,2449.4,0.5]
[1728832690035,13.39592887,2449.5,2449.4,0.5]
[1728832690245,4.91219,2448.7,2448.6,0.5]
[1728832690415,4.08379,2448.7,2448.6,0.5]
[1728832690717,4.23583459,2448.7,2448.6,0.5]
[1728832691746,0.15204459,2448.7,2448.6,0.5]
[1728832692296,4.0834,2449.0,2448.6,0.5]
[1728832692435,0.15204459,2448.7,2448.6,4.58396]
[1728832692632,4.08269,2449.4,2448.7,0.55]
[1728832692830,7.58983921,2449.4,2448.8,0.7936]
[1728832693018,4.08332,2449.0,2448.8,0.7936]
[1728832693416,4.08332,2449.0,2448.6,0.5]
[1728832693620,0.15201665,2448.9,2448.6,0.5]
[1728832693925,4.23550665,2448.9,2448.6,0.5]
[1728832694324,4.08363,2448.8,2448.6,0.5]
[1728832694555,4.08379,2448.7,2448.6,0.5]
[1728832694902,0.15211445,2448.7,2448.6,0.5]
[1728832695066,0.15211445,2448.7,2448.6,1.2936]
[1728832695267,4.0834,2449.0,2448.6,1.2936]
[1728832695483,0.15211445,2448.7,2448.6,1.2936]
[1728832695656,4.08314,2449.1,2448.6,1.2936]
[1728832695657,7.59022921,2449.2,2448.6,1.2936]
[1728832695856,0.15210749,2448.7,2448.6,5.37755]
[1728832696096,4.08308,2449.2,2448.6,2.239759]
[1728832696262,4.08308,2449.2,2448.6,1.2936]
[1728832696467,0.15146488,2449.1,2448.6,5.37748]
[1728832696903,12.46709921,2449.4,2448.6,5.37748]
[1728832696904,4.08288,2449.3,2448.6,5.37748]
[1728832697087,4.08296,2449.2,2448.6,5.37748]
[1728832697416,4.23437596,2449.2,2448.6,5.37748]
[1728832697614,4.23437596,2449.2,2448.6,1.2936]
[1728832697815,4.08314,2449.1,2448.6,1.2936]
[1728832698119,3.50714921,2449.0,2448.6,1.2936]
[1728832698268,4.08361,2448.9,2448.6,1.2936]
[1728832698771,0.15140896,2448.8,2448.6,1.2936]
[1728832698971,8.16671,2449.0,2448.6,1.2936]
[1728832699184,0.15140896,2448.7,2448.6,1.2936]
[1728832699385,1.25274617,2449.0,2448.6,1.2936]
[1728832699601,0.15136703,2448.7,2448.6,1.2936]
[1728832699798,4.08371,2448.8,2448.6,1.2936]
[1728832700003,0.15136703,2448.7,2448.6,1.2936]
[1728832700220,4.23515703,2448.7,2448.6,0.5]
[1728832700422,5.14251373,2448.7,2448.6,0.5]
[1728832702099,1.05872373,2448.7,2448.6,0.5]
[1728832702306,0.15136703,2448.7,2448.6,0.5]
[1728832702538,4.23515703,2448.7,2448.6,0.5]
[1728832703549,4.98985703,2448.7,2448.6,0.5]
[1728832703748,0.15136703,2448.7,2448.6,5.39116]
[1728832703899,4.08338,2449.0,2448.6,1.846316]
[1728832704099,4.0834,2449.0,2448.6,1.3072]
[1728832704304,0.14609696,2448.9,2448.6,1.3072]